[Event "MCCT Chessable Masters 2022"]
[Site "Online"]
[Date "2022.05.16"]
[Round "5.6"]
[White "Hansen, Eric"]
[Black "Vidit, Santosh Gujrathi"]
[Result "1-0"]
[ECO "C65"]
[WhiteElo "2606"]
[BlackElo "2723"]
[Annotator "TA"]
[PlyCount "117"]
[EventDate "2022.05.19"]
[EventType "tourn"]
[EventCountry "NET"]
[SourceTitle "playchess.com"]
[Source "ChessBase"]
[SourceQuality "1"]
[TimeControl "900+10"]

{[%evp 11,117,0,0,-5,15,0,0,0,0,-6,0,-8,0,0,0,7,6,1,4,0,0,-2,0,-31,0,0,8,0,2,0,0,0,0,0,-1,-6,-3,-4,4,0,0,0,0,-27,0,-16,16,-6,0,0,0,0,54,52,59,34,91,91,91,122,130,93,117,126,122,121,246,280,279,255,265,282,256,245,230,229,236,207,440,440,428,394,469,359,409,273,894,627,2037,1950,1823,1625,1555,1516,1572,941,1727,2157,924,653,29974,29975,29974,29975,29973,29974,29970,29971]} 1. e4 {[%emt 0:00:00]} e5 {[%emt 0:00:00]} 2. Nf3 {[%emt 0:00:05]} Nc6 {[%emt 0:00:01]} 3. Bb5 {[%emt 0:00:20]} Nf6 {[%emt 0:00:02]} 4. d3 {[%emt 0:00:03]} Bc5 {[%emt 0:00:01]} 5. O-O {[%emt 0:02:58]} Nd4 {[%emt 0:00:45]} 6. Nxd4 {[%emt 0:00:02]} Bxd4 {[%emt 0:00:00]} 7. Nd2 {[%emt 0:00:20] C65: Ruy Lopez: Berlin Defence (3...Nf6), unusual lines and 4 0-0 Bc5.} O-O {[%emt 0:00:19] was the old line (7...c6).} 8. Nf3 {[%emt 0:00:17]} Bb6 {[%emt 0:00:03]} 9. h3 {[%emt 0:00:55] The position is equal.} c6 {[%emt 0:01:40]} 10. Ba4 {[%emt 0:00:03]} d6 {[%emt 0:00:13] [#]} 11. Bb3 $146 {[%emt 0:00:16]} ({Predecessor:} 11. c3 h6 12. Bc2 Re8 13. Kh1 d5 14. Qe2 dxe4 15. dxe4 Nh5 16. Nh2 Qh4 17. Qf3 {0-1 (81) Kamsky,G (2723)-Kramnik,V (2788) Moscow 2008}) 11... Re8 {[%emt 0:00:28]} 12. Re1 {[%emt 0:00:29]} Be6 {[%emt 0:00:20]} 13. c3 {[%emt 0:00:02]} Bxb3 {[%emt 0:00:05]} 14. Qxb3 {[%emt 0:00:04]} h6 {[%emt 0:01:14]} 15. a4 {[%emt 0:00:25][%cal Oa4a5]} Qc7 {[%emt 0:00:27]} 16. Nh4 {[%emt 0:00:22]} d5 {[%emt 0:00:15]} 17. Qd1 {[%emt 0:00:18]} Re6 {[%emt 0:01:21]} 18. Nf5 {[%emt 0:00:11]} Bc5 {[%emt 0:01:00]} 19. Qf3 {[%emt 0:00:25]} Bf8 {[%emt 0:00:20]} 20. Be3 {[%emt 0:00:25]} Kh7 {[%emt 0:00:17]} 21. b4 {[%emt 0:00:16]} g6 {[%emt 0:00:19]} 22. Ng3 {[%emt 0:00:04]} a5 {[%emt 0:00:33]} 23. Reb1 {[%emt 0:00:14]} axb4 {[%emt 0:00:53]} 24. cxb4 {[%emt 0:00:02]} Kg7 {[%emt 0:00:18]} 25. a5 {[%emt 0:00:50]} Qd7 {[%emt 0:00:18]} 26. Rb3 {[%emt 0:00:56]} Kg8 {[%emt 0:01:29]} 27. Rc1 {[%emt 0:00:38]} Bg7 {[%emt 0:00:43]} (27... d4 $5 {[%cal Rd4e3]} 28. Bd2 Ne8 $11) 28. Rcb1 {[%emt 0:01:05]} h5 {[%emt 0:01:22]} (28... d4 $5 {[%cal Rd4e3]} 29. Bd2 Qd8 $11) 29. Ne2 {[%emt 0:01:18][%cal Bg3e2,Be2c3,Bc3a4,Ba4b6][%mdl 32]} Ree8 {[%emt 0:00:26]} 30. Bc5 {[%emt 0:00:21]} Qe6 {[%emt 0:00:07]} 31. Nc3 {[%emt 0:00:10]} dxe4 {[%emt 0:01:18]} (31... d4 $11 32. Na4 Nd7) 32. dxe4 $14 {[%emt 0:00:04]} Qc4 {[%emt 0:00:07]} 33. Bb6 {[%emt 0:00:37] Inhibits Rad8.} Nd7 {[%emt 0:00:43] [#]} (33... Re6 $14) 34. Na4 $1 $16 {[%emt 0:01:26]} Qb5 {[%emt 0:00:13]} 35. Rd1 {[%emt 0:01:21]} Nxb6 {[%emt 0:00:11]} 36. Nxb6 {[%emt 0:00:02]} Rad8 {[%emt 0:00:00] [#]} 37. Nd7 $1 {[%emt 0:00:28]} Qc4 {[%emt 0:00:31]} 38. Rbd3 {[%emt 0:00:30] White is much more active.} Qxb4 {[%emt 0:01:03] [#] This move loses the game for Black.} (38... h4 $16) 39. Nxe5 $1 $18 {[%emt 0:00:16][%mdl 576] Discovered Attack} Bxe5 {[%emt 0:00:53]} 40. Rxd8 {[%emt 0:00:07]} Rxd8 {[%emt 0:00:00]} 41. Rxd8+ $16 {[%emt 0:00:01][%mdl 4096] Endgame KQR-KQB} Kg7 {[%emt 0:00:00][%cal Rb4e1]} 42. g3 {[%emt 0:00:25] Strongly threatening Rd7.} Qxa5 {[%emt 0:00:13]} 43. Rd7 {[%emt 0:00:03][%csl LRb7,LRf7]} Qa2 {[%emt 0:00:05]} 44. Rxb7 {[%emt 0:00:09]} c5 $2 {[%emt 0:00:16]} (44... Bd4 45. e5 Bxe5 46. Qxc6 Bd4) 45. Qb3 $18 {[%emt 0:00:17]} Qxb3 {[%emt 0:00:12]} 46. Rxb3 {[%emt 0:00:00] KR-KB} c4 {[%emt 0:00:01]} 47. Rb6 {[%emt 0:00:22]} c3 {[%emt 0:00:08]} 48. Rc6 {[%emt 0:00:02]} h4 $2 {[%emt 0:01:03]} (48... g5 49. Kf1 g4 50. hxg4 hxg4) 49. gxh4 {[%emt 0:00:09] Kg2 is the strong threat.} Kh6 {[%emt 0:00:05]} 50. Kg2 {[%emt 0:00:11]} f6 {[%emt 0:00:02]} 51. Rc8 {[%emt 0:00:17]} f5 {[%emt 0:01:00]} 52. f3 {[%emt 0:01:22][%cal Bf2f3,Bf3e4][%mdl 32]} Bd4 {[%emt 0:00:15]} 53. Rc4 {[%emt 0:00:04]} Bf6 {[%emt 0:00:07]} 54. Rc6 {[%emt 0:00:03]} Kg7 {[%emt 0:00:03]} 55. h5 {[%emt 0:00:19][%cal Bh4h5,Bh5h6][%mdl 32]} fxe4 {[%emt 0:00:13]} 56. h6+ {[%emt 0:00:01] White mates.} Kf7 {[%emt 0:00:05]} 57. fxe4 {[%emt 0:00:03]} Bd4 {[%emt 0:00:22]} 58. Kf3 {[%emt 0:00:05]} Be5 {[%emt 0:00:18]} 59. Ke3 {[%emt 0:00:08] Weighted Error Value: White=0.15 (very precise) /Black=0.21 (precise)} 1-0

[Event "MCCT Chessable Masters 2022"]
[Site "Online"]
[Date "2022.05.16"]
[Round "5.7"]
[White "Mamedyarov, Shakhriyar"]
[Black "Shankland, Sam"]
[Result "1-0"]
[ECO "D44"]
[WhiteElo "2770"]
[BlackElo "2718"]
[Annotator "TA"]
[PlyCount "101"]
[EventDate "2022.05.19"]
[EventType "tourn"]
[EventCountry "NET"]
[SourceTitle "playchess.com"]
[Source "ChessBase"]
[SourceQuality "1"]
[TimeControl "900+10"]

{[%evp 22,101,31,0,45,23,27,0,28,8,20,0,51,0,24,0,10,10,10,12,17,0,0,0,0,0,0,0,0,-15,0,-58,-33,-33,-33,-33,0,-33,-33,-33,-33,-33,-35,-50,-35,-85,-69,-118,-95,-109,-81,-92,-15,-54,-51,-74,51,0,241,242,225,232,475,322,337,292,1147,1008,1067,1211,12804,12824,29978,29978,29979,29980,29983,29984,29995,29995,29996,29997]} 1. d4 {[%emt 0:00:00]} d5 {[%emt 0:00:00]} 2. c4 {[%emt 0:00:13]} c6 {[%emt 0:00:02]} 3. Nf3 {[%emt 0:00:06]} Nf6 {[%emt 0:00:01]} 4. Nc3 {[%emt 0:00:04]} e6 {[%emt 0:00:02]} 5. Bg5 {[%emt 0:00:08]} dxc4 {[%emt 0:00:13]} 6. e4 {[%emt 0:00:15]} b5 {[%emt 0:00:02]} 7. e5 {[%emt 0:00:00]} h6 {[%emt 0:00:02]} 8. Bh4 {[%emt 0:00:02]} g5 {[%emt 0:00:01]} 9. Nxg5 {[%emt 0:00:01]} hxg5 {[%emt 0:00:01]} 10. Bxg5 {[%emt 0:00:00]} Nbd7 {[%emt 0:00:13]} 11. exf6 {[%emt 0:00:19]} Bb7 {[%emt 0:00:03]} 12. Be2 {[%emt 0:00:29]} Nxf6 {[%emt 0:00:39] D44: Semi-Slav: Botvinnik System.} 13. Bf3 {[%emt 0:00:29]} Be7 {[%emt 0:00:19]} 14. Qe2 {[%emt 0:01:36]} Qc7 {[%emt 0:01:40] The position is equal.} 15. g3 {[%emt 0:01:37]} O-O-O {[%emt 0:00:25] [#]} 16. Bf4 $146 {[%emt 0:01:49]} ({Predecessor:} 16. O-O-O Nd5 17. Bxe7 Nxc3 18. bxc3 Qxe7 19. h4 c5 20. Bxb7+ Kxb7 21. Qe5 Kb6 22. d5 Qd6 23. Rhe1 exd5 24. Qf5 {0-1 (35) Danek,P (2230)-Srvatka,I Slovakia 1999}) 16... Bd6 {[%emt 0:01:49]} (16... Qb6 $11) 17. Bg5 {[%emt 0:00:04]} Be7 {[%emt 0:00:13]} 18. Rd1 {[%emt 0:01:28]} Nd5 {[%emt 0:01:12]} 19. Nxd5 {[%emt 0:01:04]} exd5 {[%emt 0:00:41]} 20. Bxe7 {[%emt 0:00:03]} Rde8 {[%emt 0:00:01]} 21. O-O {[%emt 0:00:15]} Qxe7 {[%emt 0:00:34]} 22. Qd2 {[%emt 0:00:18]} Qf6 {[%emt 0:00:28]} 23. Bg4+ {[%emt 0:00:50]} Kb8 {[%emt 0:00:12]} 24. Rfe1 {[%emt 0:00:04]} Reg8 {[%emt 0:03:43]} 25. f3 {[%emt 0:00:41]} Bc8 {[%emt 0:00:14]} 26. Rf1 {[%emt 0:01:38]} (26. Re5 $11) 26... Qd6 $36 {[%emt 0:00:31][%mdl 2048] Black is pushing.} 27. Bxc8 {[%emt 0:00:12]} Kxc8 {[%emt 0:00:00]} 28. Rde1 {[%emt 0:00:17]} Rh3 {[%emt 0:00:44][%cal Oh3g3]} 29. Re2 {[%emt 0:00:14]} Kb7 {[%emt 0:01:01]} 30. Rfe1 {[%emt 0:00:52]} Kb6 {[%emt 0:00:19]} 31. f4 {[%emt 0:00:37]} a5 {[%emt 0:00:37]} 32. Re8 {[%emt 0:00:39]} Rhh8 {[%emt 0:01:37]} 33. Rxg8 {[%emt 0:00:55]} ({Better is} 33. R8e5 $15) 33... Rxg8 $15 {[%emt 0:00:00][%mdl 4096] Endgame KQR-KQR} 34. Kg2 {[%emt 0:00:01]} (34. a3 $15 {might be stronger.}) 34... b4 $1 $17 {[%emt 0:00:24]} 35. Re5 {[%emt 0:00:18]} f6 {[%emt 0:00:42]} 36. Re2 {[%emt 0:00:03]} Kb5 {[%emt 0:00:36]} (36... Qd7 $1 $17 {Threatens to win with ...Re8.} 37. Qe3 Kb5) 37. f5 $1 $11 {[%emt 0:00:31]} Qd7 {[%emt 0:01:06]} 38. Re6 {[%emt 0:00:06] [#]} Re8 {[%emt 0:00:45]} (38... Qg7 $1 $17 {[%cal Rg7g4]}) 39. Qe2 {[%emt 0:00:26]} ({Much weaker is} 39. Rxf6 Re4 $11) (39. Qe3 $1 $14 Rh8 40. h4) 39... Rxe6 $2 {[%emt 0:00:04]} (39... Rc8 $11 {and Black stays safe.}) 40. fxe6 {[%emt 0:00:00] KQ-KQ} Qe7 {[%emt 0:00:01] [#]} 41. b3 $1 {[%emt 0:00:03] Strongly threatening bxc4+.} a4 $2 {[%emt 0:00:23]} (41... c5 42. bxc4+ Kc6 43. h4 $18) (41... Kb6 {keeps fighting.} 42. bxc4 dxc4) 42. h4 {[%emt 0:00:05]} axb3 {[%emt 0:00:06]} 43. axb3 {[%emt 0:00:00]} c5 $2 {[%emt 0:00:03]} (43... Ka5 44. bxc4 b3 45. cxd5 cxd5) 44. bxc4+ $18 {[%emt 0:00:02]} dxc4 {[%emt 0:00:01]} 45. d5 {[%emt 0:00:01]} b3 {[%emt 0:00:01]} 46. Kh2 {[%emt 0:00:09][%cal Od5d6] d6! would kill now.} Kb4 {[%emt 0:00:11]} 47. d6 {[%emt 0:00:02] White mates.} Qxd6 {[%emt 0:00:04]} 48. e7 {[%emt 0:00:01]} c3 {[%emt 0:00:24]} 49. e8=Q {[%emt 0:00:05]} c2 {[%emt 0:00:14]} 50. Q8b5+ {[%emt 0:00:22]} Kc3 {[%emt 0:00:27]} 51. Qe3+ {[%emt 0:00:10] Weighted Error Value: White=0.19 (very precise) /Black=0.57} 1-0

[Event "MCCT Chessable Masters 2022"]
[Site "Online"]
[Date "2022.05.16"]
[Round "5.8"]
[White "Van Foreest, Jorden"]
[Black "Mishra, Abhimanyu"]
[Result "1-0"]
[ECO "B50"]
[WhiteElo "2715"]
[BlackElo "2535"]
[Annotator "TA"]
[PlyCount "107"]
[EventDate "2022.05.19"]
[EventType "tourn"]
[EventCountry "NET"]
[SourceTitle "playchess.com"]
[Source "ChessBase"]
[SourceQuality "1"]
[TimeControl "900+10"]

{[%evp 9,107,0,0,-17,-7,0,0,-4,-11,-8,19,19,22,0,0,7,50,38,58,37,50,50,49,50,47,40,32,19,41,-91,-108,-120,-102,-103,-114,-199,-120,-113,-105,-105,-20,-21,-20,-15,0,0,0,0,0,0,0,-149,-115,-129,111,81,53,57,50,0,0,0,0,0,0,0,0,0,0,0,0,0,0,0,0,-8,-8,-8,0,0,0,0,0,0,0,0,0,0,0,0,0,0,475,450,29995,29996,29996,29997,29997,1204]} 1. e4 {[%emt 0:00:00]} c5 {[%emt 0:00:00]} 2. Nf3 {[%emt 0:00:04]} d6 {[%emt 0:00:02]} 3. Bc4 {[%emt 0:00:01]} Nf6 {[%emt 0:00:07]} 4. Nc3 {[%emt 0:00:04]} e6 {[%emt 0:00:30]} 5. d4 {[%emt 0:00:03]} cxd4 {[%emt 0:00:03]} 6. Qxd4 {[%emt 0:00:00] B50: Sicilian: 2...d6, Miscellaneous.} Nc6 {[%emt 0:00:46]} 7. Qd3 {[%emt 0:00:02]} Be7 {[%emt 0:00:58]} 8. Bf4 {[%emt 0:00:03] The position is equal.} O-O {[%emt 0:00:17]} 9. O-O-O {[%emt 0:00:03][%cal Rf4d6] [#]} Ng4 $146 {[%emt 0:02:27]} ({Predecessor:} 9... a6 10. Bxd6 b5 11. Bb3 b4 12. Bxe7 Qxe7 13. Na4 Bb7 14. h3 Na5 15. e5 Ne4 {1-0 (30) Vakhlamov,I (2413)-Koridze,L (2016) Chess.com INT 2021}) 10. Qe2 {[%emt 0:00:42] h3 is the strong threat.} (10. Bxd6 $2 Nxf2 11. Qd2 Nxd1 12. Rxd1 Bxd6 13. Qxd6 Qxd6 14. Rxd6 Rd8 15. Rxd8+ Nxd8 $19) 10... Qb6 {[%emt 0:00:30]} 11. Rhf1 {[%emt 0:00:03]} (11. Bxd6 {is more complex.} Nxf2 12. Na4 Qa5 13. Qxf2 Qxa4 14. Qc5) 11... Nge5 {[%emt 0:00:20][%cal Bg4e5,Be5d7,Bd7c5][%mdl 32]} 12. Bb3 {[%emt 0:01:20]} Rd8 {[%emt 0:01:07]} 13. Be3 {[%emt 0:00:13]} Qc7 {[%emt 0:01:23]} 14. Nd2 {[%emt 0:00:49]} Nd7 {[%emt 0:01:58]} 15. f4 {[%emt 0:01:21]} Nc5 {[%emt 0:00:42]} 16. f5 {[%emt 0:00:41]} Bf6 {[%emt 0:01:49]} 17. fxe6 {[%emt 0:00:20]} fxe6 {[%emt 0:00:22][%cal Bf7e6,Be6e5][%mdl 32]} 18. Qg4 {[%emt 0:02:34]} Nxb3+ {[%emt 0:01:12]} 19. Nxb3 {[%emt 0:00:10]} (19. axb3 $14 {is the one way to stay ahead.} Qe7 20. Nc4) 19... Bxc3 $17 {[%emt 0:00:22]} 20. bxc3 {[%emt 0:00:03]} e5 {[%emt 0:00:23]} 21. Qg3 {[%emt 0:00:47]} Be6 {[%emt 0:00:13]} 22. Bg5 {[%emt 0:01:18] [#]} (22. Rf6 $17 {might work better.} Re8 23. h4) 22... Rf8 {[%emt 0:00:45]} (22... Rd7 $1 $19 {Threatens to win with ...a5.} 23. Kb1 Na5) 23. Rxf8+ {[%emt 0:00:03]} Rxf8 {[%emt 0:00:04]} 24. Qd3 {[%emt 0:00:01]} Rf2 {[%emt 0:00:34]} (24... h6 $17 25. Bh4 Qf7) 25. Qxd6 $11 {[%emt 0:00:34]} Qxd6 {[%emt 0:00:18]} 26. Rxd6 {[%emt 0:00:00]} Bxb3 {[%emt 0:00:34]} 27. axb3 {[%emt 0:00:00]} Rxg2 {[%emt 0:00:03][%mdl 4096] Endgame KRB-KRN} 28. h4 {[%emt 0:00:10]} Rg4 {[%emt 0:00:27]} 29. Rd7 {[%emt 0:00:02]} h6 {[%emt 0:00:18]} 30. Bd2 {[%emt 0:00:12]} (30. Be3 $11 {keeps the balance.}) 30... Rxh4 $17 {[%emt 0:01:00]} (30... Rxe4 $6 31. Rxb7 Rxh4 32. Rc7 Rh1+ 33. Kb2 $11) 31. Rxb7 {[%emt 0:00:02] [#]} Kh7 $2 {[%emt 0:00:05]} (31... Rh1+ $1 $17 {keeps the pressure on.} 32. Kb2 Rd1) 32. Rc7 $16 {[%emt 0:01:14]} Nd8 {[%emt 0:00:03]} 33. Rxa7 {[%emt 0:00:01]} Rxe4 {[%emt 0:00:03]} 34. b4 {[%emt 0:00:15]} ({White should try} 34. Rd7 $14 Nc6 35. Rc7) 34... h5 $1 $11 {[%emt 0:00:18]} 35. Rd7 {[%emt 0:01:06]} Ne6 {[%emt 0:00:35]} 36. b5 {[%emt 0:00:10] Black must now prevent Rd5.} h4 {[%emt 0:00:03] And now ...h3 would win.} 37. Rd3 {[%emt 0:00:01]} Nc5 {[%emt 0:00:18]} 38. Rh3 {[%emt 0:00:52]} Kg6 {[%emt 0:00:08] Prevents Bg5.} 39. Be3 {[%emt 0:00:01]} Nb7 {[%emt 0:00:10]} 40. Kd2 {[%emt 0:00:13]} Kf5 {[%emt 0:00:13]} 41. Kd3 {[%emt 0:00:09]} Rg4 {[%emt 0:00:09]} 42. b6 {[%emt 0:00:21]} Ke6 {[%emt 0:00:15]} 43. c4 {[%emt 0:00:02]} g5 {[%emt 0:00:06]} 44. Rh1 {[%emt 0:00:47]} Rg3 {[%emt 0:00:11]} 45. Ke2 {[%emt 0:00:20]} h3 {[%emt 0:00:08] aiming for ...g4.} 46. c5 {[%emt 0:00:41]} ({Don't play} 46. Kf2 Rg2+ 47. Kf1 Rg3 $15) 46... Kd5 {[%emt 0:00:08]} 47. c4+ {[%emt 0:00:02]} Kc6 {[%emt 0:00:15]} 48. Rf1 {[%emt 0:00:02] Rf6+ would kill now.} Rg2+ {[%emt 0:00:13]} (48... Nxc5 $2 49. Rf6+ Kd7 50. Bxc5 $18) 49. Ke1 {[%emt 0:00:32] Strongly threatening Rf6+.} Nxc5 {[%emt 0:00:13]} (49... Nd8 $5 50. Rf6+ Kb7 $11) 50. Rf6+ {[%emt 0:00:01][%mdl 64] Deflection} Kb7 $2 {[%emt 0:00:01][%mdl 8192]} (50... Kd7 $11 51. Rh6 (51. Bxc5 h2 $11) 51... Nd3+ 52. Kf1 Rc2) 51. Bxc5 $18 {[%emt 0:00:19] Intending Rf7+ and mate.} h2 {[%emt 0:00:18]} (51... Rb2 $18 52. Rf7+ Kc8) 52. Rf7+ {[%emt 0:00:00] White mates.} Kc8 {[%emt 0:00:08]} 53. b7+ {[%emt 0:00:01]} Kb8 {[%emt 0:00:05]} 54. Bd6+ {[%emt 0:00:01] What a bad dream for Black.  Weighted Error Value: White=0.15 (very precise) /Black=0.31} 1-0

[Event "MCCT Chessable Masters 2022"]
[Site "Online"]
[Date "2022.05.16"]
[Round "6.1"]
[White "Carlsen, Magnus"]
[Black "Mishra, Abhimanyu"]
[Result "1-0"]
[ECO "D11"]
[WhiteElo "2864"]
[BlackElo "2535"]
[Annotator "TA"]
[PlyCount "101"]
[EventDate "2022.05.19"]
[EventType "tourn"]
[EventCountry "NET"]
[SourceTitle "playchess.com"]
[Source "ChessBase"]
[SourceQuality "1"]
[TimeControl "900+10"]

{[%evp 9,101,6,7,9,12,14,7,8,7,4,7,8,13,1,13,10,43,8,45,31,37,29,60,56,62,64,68,59,44,35,77,72,72,72,67,48,36,33,66,53,79,76,80,70,70,23,58,65,54,54,173,165,176,177,224,206,409,405,877,869,845,841,29960,29960,29969,29970,29970,29969,29972,29972,29974,29975,29977,29978,29978,29979,29979,29980,29981,29982,29982,29983,29983,29984,29984,29985,29985,29986,29987,29988,29988,29988,29988,29989]} 1. d4 {[%emt 0:00:00]} d5 {[%emt 0:00:00]} 2. c4 {[%emt 0:00:01]} c6 {[%emt 0:00:02]} 3. Nf3 {[%emt 0:00:01]} Nf6 {[%emt 0:00:01]} 4. g3 {[%emt 0:00:03]} Bf5 {[%emt 0:00:07]} 5. Nc3 {[%emt 0:00:02]} e6 {[%emt 0:00:07]} 6. Nh4 {[%emt 0:00:01] D11: Slav Defence: 3 Nf3 sidelines and 3...Nf6 4 e3 Bg4.} dxc4 {[%emt 0:00:05]} 7. Nxf5 {[%emt 0:00:33]} exf5 {[%emt 0:00:03]} 8. e3 {[%emt 0:00:47] The position is equal.} Nbd7 {[%emt 0:00:04]} 9. Bxc4 {[%emt 0:00:02]} Nb6 {[%emt 0:00:02]} 10. Bb3 {[%emt 0:00:45]} Qd7 {[%emt 0:00:04]} 11. Bd2 {[%emt 0:00:44] [#]} Bd6 $146 {[%emt 0:00:56]} ({Predecessor:} 11... h5 12. Qf3 h4 13. O-O-O O-O-O 14. Kb1 Nbd5 15. Rc1 Nxc3+ 16. Bxc3 Kb8 17. Rhd1 hxg3 18. hxg3 {1-0 (30) Iskusnyh,S (2473)-Nesterov,A (2498) Chess.com INT 2020}) 12. f3 {[%emt 0:03:35]} Bc7 {[%emt 0:02:05]} 13. Qe2 {[%emt 0:00:25]} O-O-O {[%emt 0:00:22]} 14. O-O-O {[%emt 0:00:04]} h5 {[%emt 0:01:19]} 15. Kb1 {[%emt 0:01:05]} Rhe8 {[%emt 0:01:15]} 16. Rhe1 {[%emt 0:00:18]} Kb8 {[%emt 0:00:36]} 17. e4 {[%emt 0:01:39]} Nfd5 {[%emt 0:04:26]} 18. Qf1 {[%emt 0:01:11]} Nxc3+ {[%emt 0:00:25]} 19. Bxc3 {[%emt 0:00:07]} g6 {[%emt 0:00:19]} 20. a3 {[%emt 0:00:16]} fxe4 {[%emt 0:01:16]} 21. fxe4 {[%emt 0:00:03]} f5 {[%emt 0:00:06]} 22. exf5 {[%emt 0:00:48] [#] Strongly threatening Rxe8.} gxf5 {[%emt 0:00:13][%cal Oh5h4]} 23. Qf3 {[%emt 0:00:26]} Rxe1 {[%emt 0:01:59]} 24. Bxe1 {[%emt 0:00:45]} h4 {[%emt 0:00:45]} 25. gxh4 {[%emt 0:00:03][%cal Bg3h4,Bh4h5,Bh5h6,Bh6h7][%mdl 32] White is more active.} f4 {[%emt 0:00:28]} 26. h5 {[%emt 0:00:20]} Nd5 {[%emt 0:00:13]} 27. Bd2 {[%emt 0:03:52] Prevents Ne3.} ({White should play} 27. Bf2 $14) 27... Ne3 {[%emt 0:00:57]} 28. Bxe3 {[%emt 0:00:14]} fxe3 {[%emt 0:00:00]} 29. Bc2 {[%emt 0:00:11] Threatens to win with h6.} Bb6 {[%emt 0:01:12] Black is now going downhill.} (29... Qd5 $14 30. Qxd5 (30. Qxe3 Qxh5 31. h3 a6 $11) 30... cxd5) 30. h6 {[%emt 0:00:13]} Bxd4 {[%emt 0:00:23]} 31. h7 {[%emt 0:00:10]} c5 {[%emt 0:00:12]} (31... Qg7 $142) 32. Qxe3 $1 $18 {[%emt 0:00:14] And now Qg3+ would win.} Qg7 {[%emt 0:00:11]} (32... a6 33. b4 (33. Rxd4 Qxd4 34. Qg3+ Ka7 $14) 33... Qc7) 33. Qg3+ {[%emt 0:00:03]} Qc7 {[%emt 0:00:14]} (33... Qxg3 $142 34. hxg3 Kc7) 34. Bb3 {[%emt 0:00:50]} Rh8 {[%emt 0:00:07]} 35. Bg8 {[%emt 0:00:10]} a5 {[%emt 0:00:06] [#]} 36. Rxd4 $1 {[%emt 0:00:15][%mdl 512] White mates.} cxd4 {[%emt 0:00:05]} (36... Qxg3 37. hxg3) 37. Qxc7+ {[%emt 0:00:01]} Kxc7 {[%emt 0:00:01] KR-KB} 38. Kc2 {[%emt 0:00:00]} Kd6 {[%emt 0:00:11]} 39. Kd3 {[%emt 0:00:06]} Kc5 {[%emt 0:00:10]} 40. b3 {[%emt 0:00:02]} b6 {[%emt 0:00:18]} 41. Ke4 {[%emt 0:00:17]} Kc6 {[%emt 0:00:13]} 42. Kxd4 {[%emt 0:00:01]} Kd6 {[%emt 0:00:01]} 43. h3 {[%emt 0:00:08]} b5 {[%emt 0:00:08]} 44. b4 {[%emt 0:00:12]} axb4 {[%emt 0:00:11]} 45. axb4 {[%emt 0:00:01]} Kc6 {[%emt 0:00:02]} 46. Ke5 {[%emt 0:00:01]} Kd7 {[%emt 0:00:07]} 47. Kd5 {[%emt 0:00:04]} Kc7 {[%emt 0:00:02]} 48. Kc5 {[%emt 0:00:01]} Kb7 {[%emt 0:00:00]} 49. Kxb5 {[%emt 0:00:01]} Kc7 {[%emt 0:00:01]} 50. Ka6 {[%emt 0:00:01]} Kc8 {[%emt 0:00:14]} 51. Ka7 {[%emt 0:00:02] Weighted Error Value: White=0.03 (flawless) /Black=0.27 (precise)} 1-0